[Event "Titled Tuesday Blitz May 16 Early 2023"]
[White "Mortazavi, Ali"]
[Black "I_KID_you_not"]
[WhiteFideId "401323"]
[WhiteElo "2339"]
[BlackElo "2297"]
[Result "0-1"]
[Round "01"]
[TimeControl "180+2"]
[Date "2023.05.16"]
[WhiteClock "0:00:04"]
[BlackClock "0:00:06"]

1. Nf3 {[%clk 0:02:59]}  f5 {[%clk 0:02:59]} 2. d3 {[%clk 0:02:59]}  Nc6 {[%clk 0:02:58]} 3. d4 {[%clk 0:02:55]}  e6 {[%clk 0:02:56]} 4. c4 {[%clk 0:02:55]}  Nf6 {[%clk 0:02:52]} 5. d5 {[%clk 0:02:54]}  exd5 {[%clk 0:02:42]} 6. cxd5 {[%clk 0:02:54]}  Bb4+ {[%clk 0:02:42]} 7. Nc3 {[%clk 0:02:46]}  Ne7 {[%clk 0:02:42]} 8. Bg5 {[%clk 0:02:25]}  Nexd5 {[%clk 0:02:34]} 9. Qb3 {[%clk 0:02:17]}  Bxc3+ {[%clk 0:02:06]} 10. bxc3 {[%clk 0:02:17]}  h6 {[%clk 0:02:07]} 11. Bd2 {[%clk 0:02:03]}  d6 {[%clk 0:01:46]} 12. c4 {[%clk 0:01:52]}  Nb6 {[%clk 0:01:30]} 13. Bc3 {[%clk 0:01:53]}  Be6 {[%clk 0:01:27]} 14. e3 {[%clk 0:01:53]}  Qe7 {[%clk 0:01:26]} 15. Be2 {[%clk 0:01:37]}  Qf7 {[%clk 0:01:24]} 16. O-O {[%clk 0:01:25]}  Bxc4 {[%clk 0:01:21]} 17. Bxc4 {[%clk 0:01:24]}  Qxc4 {[%clk 0:01:21]} 18. Bxf6 {[%clk 0:01:17]}  Qxb3 {[%clk 0:01:17]} 19. axb3 {[%clk 0:01:18]}  gxf6 {[%clk 0:01:17]} 20. Nd4 {[%clk 0:01:18]}  Kd7 {[%clk 0:01:09]} 21. Nxf5 {[%clk 0:01:18]}  a5 {[%clk 0:01:03]} 22. Rfc1 {[%clk 0:01:04]}  a4 {[%clk 0:01:01]} 23. bxa4 {[%clk 0:01:05]}  Rxa4 {[%clk 0:01:01]} 24. Rab1 {[%clk 0:01:05]}  h5 {[%clk 0:00:51]} 25. g3 {[%clk 0:01:02]}  Rha8 {[%clk 0:00:47]} 26. h4 {[%clk 0:00:57]}  R8a5 {[%clk 0:00:38]} 27. Nd4 {[%clk 0:00:58]}  Rc5 {[%clk 0:00:27]} 28. Rd1 {[%clk 0:00:50]}  Kc8 {[%clk 0:00:20]} 29. Rd2 {[%clk 0:00:36]}  Nc4 {[%clk 0:00:19]} 30. Rc2 {[%clk 0:00:34]}  Na3 {[%clk 0:00:18]} 31. Ra2 {[%clk 0:00:25]}  b5 {[%clk 0:00:16]} 32. Rb3 {[%clk 0:00:21]}  Nc4 {[%clk 0:00:14]} 33. Rc2 {[%clk 0:00:19]}  c6 {[%clk 0:00:12]} 34. Ne6 {[%clk 0:00:17]}  Re5 {[%clk 0:00:11]} 35. Nf4 {[%clk 0:00:17]}  Kd7 {[%clk 0:00:10]} 36. Kg2 {[%clk 0:00:17]}  Ra3 {[%clk 0:00:09]} 37. Rxa3 {[%clk 0:00:17]}  Nxa3 {[%clk 0:00:10]} 38. Ra2 {[%clk 0:00:17]}  b4 {[%clk 0:00:10]} 39. Rb2 {[%clk 0:00:17]}  Rb5 {[%clk 0:00:10]} 40. g4 {[%clk 0:00:15]}  hxg4 {[%clk 0:00:09]} 41. h5 {[%clk 0:00:16]}  c5 {[%clk 0:00:10]} 42. h6 {[%clk 0:00:16]}  c4 {[%clk 0:00:10]} 43. h7 {[%clk 0:00:16]}  Rb8 {[%clk 0:00:10]} 44. Ng6 {[%clk 0:00:15]}  c3 {[%clk 0:00:11]} 45. Re2 {[%clk 0:00:15]}  b3 {[%clk 0:00:11]} 46. Re1 {[%clk 0:00:07]}  b2 {[%clk 0:00:11]} 47. e4 {[%clk 0:00:05]}  c2 {[%clk 0:00:11]} 48. e5 {[%clk 0:00:06]}  fxe5 {[%clk 0:00:10]} 49. Rh1 {[%clk 0:00:05]}  c1=Q {[%clk 0:00:10]} 50. Rh5 {[%clk 0:00:05]}  Qc6+ {[%clk 0:00:09]} 51. Kg3 {[%clk 0:00:05]}  b1=Q {[%clk 0:00:09]} 52. Rh6 {[%clk 0:00:04]}  Qg1+ {[%clk 0:00:09]} 53. Kh4 {[%clk 0:00:04]}  Qch1+ {[%clk 0:00:08]} 54. Kg5 {[%clk 0:00:05]}  Qxh6+ {[%clk 0:00:07]} 55. Kxh6 {[%clk 0:00:05]}  Qh2+ {[%clk 0:00:08]} 56. Kg7 {[%clk 0:00:06]}  Rd8 {[%clk 0:00:07]} 57. Nf8+ {[%clk 0:00:04]}  Rxf8 {[%clk 0:00:07]} 58. Kxf8 {[%clk 0:00:04]}  Qxh7 {[%clk 0:00:08]} 59. f4 {[%clk 0:00:05]}  Ke6 {[%clk 0:00:07]} 60. Ke8 {[%clk 0:00:04]}  Qe7# {[%clk 0:00:06]} 0-1


[Site "https://www.chess.com"]

[Event "Titled Tuesday Blitz May 16 Early 2023"]
[White "Yonal, Timur"]
[Black "Andreev, Konstantin"]
[WhiteFideId "44115725"]
[BlackFideId "24239305"]
[WhiteElo "1966"]
[BlackElo "2106"]
[Result "1/2-1/2"]
[Round "01"]
[TimeControl "180+2"]
[Date "2023.05.16"]
[WhiteClock "0:00:04"]
[BlackClock "0:00:05"]

1. e4 {[%clk 0:03:00]}  c5 {[%clk 0:02:59]} 2. Nf3 {[%clk 0:02:57]}  e6 {[%clk 0:02:58]} 3. d4 {[%clk 0:02:56]}  cxd4 {[%clk 0:02:59]} 4. Nxd4 {[%clk 0:02:57]}  Nc6 {[%clk 0:02:59]} 5. Nb5 {[%clk 0:02:54]}  d6 {[%clk 0:02:45]} 6. N1c3 {[%clk 0:02:42]}  Nf6 {[%clk 0:02:43]} 7. Bf4 {[%clk 0:02:39]}  e5 {[%clk 0:02:42]} 8. Bg5 {[%clk 0:02:36]}  a6 {[%clk 0:02:42]} 9. Na3 {[%clk 0:02:35]}  b5 {[%clk 0:02:42]} 10. Nd5 {[%clk 0:02:35]}  Be7 {[%clk 0:02:41]} 11. Bxf6 {[%clk 0:02:34]}  Bxf6 {[%clk 0:02:42]} 12. c3 {[%clk 0:02:34]}  Rb8 {[%clk 0:02:39]} 13. Nc2 {[%clk 0:02:30]}  Bg5 {[%clk 0:02:39]} 14. Be2 {[%clk 0:02:17]}  O-O {[%clk 0:02:38]} 15. O-O {[%clk 0:02:17]}  Ne7 {[%clk 0:02:36]} 16. Ncb4 {[%clk 0:02:10]}  Bb7 {[%clk 0:02:31]} 17. Nxe7+ {[%clk 0:01:55]}  Qxe7 {[%clk 0:02:32]} 18. Nd5 {[%clk 0:01:54]}  Qd7 {[%clk 0:02:23]} 19. Qd3 {[%clk 0:01:28]}  Kh8 {[%clk 0:02:20]} 20. g3 {[%clk 0:01:25]}  f5 {[%clk 0:02:10]} 21. Bf3 {[%clk 0:01:12]}  fxe4 {[%clk 0:01:55]} 22. Bxe4 {[%clk 0:01:13]}  h6 {[%clk 0:01:55]} 23. Rad1 {[%clk 0:01:07]}  Qf7 {[%clk 0:01:48]} 24. h4 {[%clk 0:01:03]}  Bd8 {[%clk 0:01:44]} 25. Qe2 {[%clk 0:00:43]}  Bc8 {[%clk 0:01:42]} 26. Ne3 {[%clk 0:00:32]}  Bh3 {[%clk 0:01:28]} 27. Rfe1 {[%clk 0:00:32]}  Rb6 {[%clk 0:01:21]} 28. h5 {[%clk 0:00:27]}  Bg5 {[%clk 0:01:03]} 29. Nd5 {[%clk 0:00:19]}  Rbb8 {[%clk 0:01:01]} 30. Bg6 {[%clk 0:00:19]}  Qa7 {[%clk 0:00:58]} 31. Bc2 {[%clk 0:00:19]}  Rf7 {[%clk 0:00:54]} 32. Bb1 {[%clk 0:00:10]}  Rbf8 {[%clk 0:00:45]} 33. Rf1 {[%clk 0:00:11]}  Qc5 {[%clk 0:00:28]} 34. Qc2 {[%clk 0:00:10]}  Bf5 {[%clk 0:00:28]} 35. Qb3 {[%clk 0:00:08]}  e4 {[%clk 0:00:27]} 36. Qb4 {[%clk 0:00:06]}  Qc6 {[%clk 0:00:27]} 37. Ne3 {[%clk 0:00:05]}  Bxe3 {[%clk 0:00:25]} 38. fxe3 {[%clk 0:00:06]}  d5 {[%clk 0:00:23]} 39. Qd4 {[%clk 0:00:06]}  Be6 {[%clk 0:00:18]} 40. Rf4 {[%clk 0:00:06]}  Rxf4 {[%clk 0:00:17]} 41. exf4 {[%clk 0:00:07]}  Qc7 {[%clk 0:00:13]} 42. b3 {[%clk 0:00:07]}  Qf7 {[%clk 0:00:13]} 43. c4 {[%clk 0:00:07]}  bxc4 {[%clk 0:00:14]} 44. bxc4 {[%clk 0:00:08]}  dxc4 {[%clk 0:00:15]} 45. Qxe4 {[%clk 0:00:08]}  Bf5 {[%clk 0:00:14]} 46. Qxf5 {[%clk 0:00:08]}  Qxf5 {[%clk 0:00:15]} 47. Bxf5 {[%clk 0:00:09]}  Rxf5 {[%clk 0:00:16]} 48. Rd8+ {[%clk 0:00:10]}  Kh7 {[%clk 0:00:16]} 49. Rc8 {[%clk 0:00:11]}  Rxh5 {[%clk 0:00:16]} 50. Rxc4 {[%clk 0:00:11]}  Ra5 {[%clk 0:00:17]} 51. a4 {[%clk 0:00:11]}  Kg6 {[%clk 0:00:18]} 52. Rb4 {[%clk 0:00:12]}  Kf5 {[%clk 0:00:18]} 53. Kf2 {[%clk 0:00:12]}  Kg4 {[%clk 0:00:18]} 54. Rb7 {[%clk 0:00:11]}  Rxa4 {[%clk 0:00:14]} 55. Rxg7+ {[%clk 0:00:10]}  Kf5 {[%clk 0:00:15]} 56. Rf7+ {[%clk 0:00:10]}  Ke6 {[%clk 0:00:15]} 57. Rh7 {[%clk 0:00:11]}  Kf5 {[%clk 0:00:14]} 58. Rxh6 {[%clk 0:00:10]}  Ra2+ {[%clk 0:00:13]} 59. Kf3 {[%clk 0:00:10]}  Ra3+ {[%clk 0:00:14]} 60. Kg2 {[%clk 0:00:11]}  Ke4 {[%clk 0:00:13]} 61. Re6+ {[%clk 0:00:11]}  Kf5 {[%clk 0:00:13]} 62. Re5+ {[%clk 0:00:11]}  Kf6 {[%clk 0:00:14]} 63. Re2 {[%clk 0:00:11]}  a5 {[%clk 0:00:14]} 64. g4 {[%clk 0:00:12]}  a4 {[%clk 0:00:14]} 65. Re5 {[%clk 0:00:12]}  Rc3 {[%clk 0:00:11]} 66. Ra5 {[%clk 0:00:12]}  a3 {[%clk 0:00:11]} 67. g5+ {[%clk 0:00:12]}  Kg6 {[%clk 0:00:11]} 68. Kf2 {[%clk 0:00:11]}  Rb3 {[%clk 0:00:10]} 69. Kg2 {[%clk 0:00:11]}  Rc3 {[%clk 0:00:10]} 70. Kf2 {[%clk 0:00:12]}  Rb3 {[%clk 0:00:10]} 71. Kg2 {[%clk 0:00:12]}  Kh5 {[%clk 0:00:11]} 72. Kf2 {[%clk 0:00:11]}  Rc3 {[%clk 0:00:09]} 73. Kg2 {[%clk 0:00:09]}  Kg4 {[%clk 0:00:06]} 74. g6 {[%clk 0:00:09]}  Rc2+ {[%clk 0:00:05]} 75. Kg1 {[%clk 0:00:06]}  Kg3 {[%clk 0:00:04]} 76. Kf1 {[%clk 0:00:05]}  Kxf4 {[%clk 0:00:01]} 77. g7 {[%clk 0:00:05]}  Rc8 {[%clk 0:00:02]} 78. Rxa3 {[%clk 0:00:04]}  Rg8 {[%clk 0:00:02]} 79. Ra7 {[%clk 0:00:04]}  Kf5 {[%clk 0:00:03]} 80. Kf2 {[%clk 0:00:04]}  Kg6 {[%clk 0:00:03]} 81. Kf3 {[%clk 0:00:04]}  Rxg7 {[%clk 0:00:04]} 82. Rxg7+ {[%clk 0:00:04]}  Kxg7 {[%clk 0:00:05]} 1/2-1/2


[Site "https://www.chess.com"]

[Event "Titled Tuesday Blitz May 16 Early 2023"]
[White "Labussiere, Yago"]
[Black "Asavasaetakul, Chawit"]
[WhiteFideId "2186969"]
[BlackFideId "6204856"]
[WhiteElo "2160"]
[BlackElo "1919"]
[Result "1-0"]
[Round "01"]
[TimeControl "180+2"]
[Date "2023.05.16"]
[WhiteClock "0:00:26"]
[BlackClock "0:00:19"]

1. c4 {[%clk 0:02:49]}  c6 {[%clk 0:02:58]} 2. d4 {[%clk 0:02:48]}  d5 {[%clk 0:02:59]} 3. Nf3 {[%clk 0:02:46]}  Nf6 {[%clk 0:02:59]} 4. e3 {[%clk 0:02:47]}  Bf5 {[%clk 0:02:58]} 5. Nc3 {[%clk 0:02:47]}  e6 {[%clk 0:02:59]} 6. Nh4 {[%clk 0:02:46]}  Be4 {[%clk 0:02:59]} 7. f3 {[%clk 0:02:45]}  Bg6 {[%clk 0:02:59]} 8. Qb3 {[%clk 0:02:43]}  Qc7 {[%clk 0:02:55]} 9. g3 {[%clk 0:02:39]}  Be7 {[%clk 0:02:52]} 10. Nxg6 {[%clk 0:02:34]}  hxg6 {[%clk 0:02:52]} 11. Bd2 {[%clk 0:02:35]}  a6 {[%clk 0:02:50]} 12. c5 {[%clk 0:02:21]}  Nbd7 {[%clk 0:02:50]} 13. O-O-O {[%clk 0:02:19]}  e5 {[%clk 0:02:47]} 14. Na4 {[%clk 0:02:01]}  O-O-O {[%clk 0:02:43]} 15. Bb4 {[%clk 0:01:29]}  exd4 {[%clk 0:02:42]} 16. exd4 {[%clk 0:01:29]}  Rde8 {[%clk 0:02:42]} 17. Bd3 {[%clk 0:01:24]}  Kb8 {[%clk 0:02:37]} 18. Qc3 {[%clk 0:01:21]}  Nf8 {[%clk 0:02:29]} 19. Ba5 {[%clk 0:01:18]}  Qc8 {[%clk 0:02:25]} 20. h4 {[%clk 0:01:18]}  Bd8 {[%clk 0:02:17]} 21. Bxd8 {[%clk 0:01:09]}  Qxd8 {[%clk 0:02:16]} 22. Nb6 {[%clk 0:01:09]}  N6d7 {[%clk 0:02:11]} 23. Nxd7+ {[%clk 0:01:04]}  Qxd7 {[%clk 0:02:12]} 24. Rhe1 {[%clk 0:01:02]}  Ne6 {[%clk 0:02:11]} 25. f4 {[%clk 0:01:00]}  Nc7 {[%clk 0:02:09]} 26. Qd2 {[%clk 0:00:58]}  Qg4 {[%clk 0:02:07]} 27. Qf2 {[%clk 0:00:56]}  Qd7 {[%clk 0:01:43]} 28. Re5 {[%clk 0:00:55]}  Re6 {[%clk 0:01:25]} 29. Rde1 {[%clk 0:00:55]}  Rhe8 {[%clk 0:01:25]} 30. Kd2 {[%clk 0:00:51]}  Qd8 {[%clk 0:01:19]} 31. b4 {[%clk 0:00:48]}  Qd7 {[%clk 0:01:12]} 32. R1e3 {[%clk 0:00:47]}  Rxe5 {[%clk 0:01:12]} 33. Rxe5 {[%clk 0:00:46]}  Ne6 {[%clk 0:01:12]} 34. f5 {[%clk 0:00:39]}  gxf5 {[%clk 0:01:06]} 35. Bxf5 {[%clk 0:00:39]}  g6 {[%clk 0:01:06]} 36. Bg4 {[%clk 0:00:29]}  f5 {[%clk 0:01:06]} 37. Bh3 {[%clk 0:00:26]}  Ng7 {[%clk 0:01:05]} 38. Qe3 {[%clk 0:00:26]}  Re6 {[%clk 0:00:58]} 39. g4 {[%clk 0:00:22]}  Rxe5 {[%clk 0:00:38]} 40. Qxe5+ {[%clk 0:00:22]}  Kc8 {[%clk 0:00:33]} 41. gxf5 {[%clk 0:00:22]}  gxf5 {[%clk 0:00:34]} 42. Ke3 {[%clk 0:00:20]}  Kd8 {[%clk 0:00:33]} 43. Kf4 {[%clk 0:00:20]}  Nh5+ {[%clk 0:00:32]} 44. Kf3 {[%clk 0:00:20]}  Ng7 {[%clk 0:00:30]} 45. h5 {[%clk 0:00:20]}  Nxh5 {[%clk 0:00:29]} 46. Bxf5 {[%clk 0:00:20]}  Qf7 {[%clk 0:00:22]} 47. Qb8+ {[%clk 0:00:20]}  Ke7 {[%clk 0:00:22]} 48. Qxb7+ {[%clk 0:00:20]}  Kf6 {[%clk 0:00:23]} 49. Qxf7+ {[%clk 0:00:21]}  Kxf7 {[%clk 0:00:23]} 50. Bc8 {[%clk 0:00:22]}  Nf6 {[%clk 0:00:22]} 51. Bxa6 {[%clk 0:00:23]}  Ke7 {[%clk 0:00:22]} 52. Bb7 {[%clk 0:00:23]}  Kd7 {[%clk 0:00:22]} 53. Ba6 {[%clk 0:00:23]}  Ne4 {[%clk 0:00:21]} 54. Bd3 {[%clk 0:00:24]}  Nc3 {[%clk 0:00:22]} 55. a3 {[%clk 0:00:23]}  Nb5 {[%clk 0:00:22]} 56. Bxb5 {[%clk 0:00:23]}  cxb5 {[%clk 0:00:22]} 57. Kf4 {[%clk 0:00:24]}  Ke6 {[%clk 0:00:22]} 58. Kg5 {[%clk 0:00:24]}  Kf7 {[%clk 0:00:22]} 59. Kf5 {[%clk 0:00:25]}  Ke7 {[%clk 0:00:19]} 60. Ke5 {[%clk 0:00:26]} 1-0


[Site "https://www.chess.com"]

[Event "Titled Tuesday Blitz May 16 Early 2023"]
[White "Soham Kamotra"]
[Black "Klepikov, Nikita"]
[WhiteFideId "46647490"]
[BlackFideId "24145220"]
[WhiteElo "2209"]
[BlackElo "2025"]
[Result "1-0"]
[Round "01"]
[TimeControl "180+2"]
[Date "2023.05.16"]
[WhiteClock "0:00:13"]
[BlackClock "0:00:00"]

1. Nf3 {[%clk 0:02:59]}  Nf6 {[%clk 0:02:59]} 2. g3 {[%clk 0:02:58]}  g6 {[%clk 0:02:59]} 3. Bg2 {[%clk 0:02:59]}  Bg7 {[%clk 0:03:00]} 4. O-O {[%clk 0:03:00]}  O-O {[%clk 0:03:00]} 5. c4 {[%clk 0:03:00]}  d6 {[%clk 0:03:00]} 6. Nc3 {[%clk 0:02:59]}  e5 {[%clk 0:02:58]} 7. d3 {[%clk 0:03:00]}  a5 {[%clk 0:02:57]} 8. Rb1 {[%clk 0:02:58]}  h6 {[%clk 0:02:53]} 9. a3 {[%clk 0:02:57]}  Nc6 {[%clk 0:02:50]} 10. b4 {[%clk 0:02:57]}  axb4 {[%clk 0:02:49]} 11. axb4 {[%clk 0:02:58]}  Be6 {[%clk 0:02:48]} 12. Bd2 {[%clk 0:02:36]}  Qd7 {[%clk 0:02:34]} 13. Re1 {[%clk 0:02:30]}  Bh3 {[%clk 0:02:19]} 14. Bh1 {[%clk 0:02:30]}  Ng4 {[%clk 0:02:17]} 15. Nd5 {[%clk 0:02:11]}  f5 {[%clk 0:01:50]} 16. e3 {[%clk 0:02:08]}  e4 {[%clk 0:01:34]} 17. Nh4 {[%clk 0:01:38]}  Nce5 {[%clk 0:00:44]} 18. d4 {[%clk 0:01:31]}  Nd3 {[%clk 0:00:43]} 19. Nxg6 {[%clk 0:01:18]}  Ngxf2 {[%clk 0:00:32]} 20. Qb3 {[%clk 0:01:06]}  Rf7 {[%clk 0:00:32]} 21. Re2 {[%clk 0:00:59]}  Bg4 {[%clk 0:00:31]} 22. Rxf2 {[%clk 0:00:59]}  Nxf2 {[%clk 0:00:31]} 23. Kxf2 {[%clk 0:01:00]}  Kh7 {[%clk 0:00:24]} 24. Ndf4 {[%clk 0:00:55]}  Rf6 {[%clk 0:00:19]} 25. Nh4 {[%clk 0:00:55]}  d5 {[%clk 0:00:17]} 26. Nxd5 {[%clk 0:00:49]}  Rfa6 {[%clk 0:00:16]} 27. Nf4 {[%clk 0:00:30]}  Ra2 {[%clk 0:00:16]} 28. Rb2 {[%clk 0:00:30]}  R8a3 {[%clk 0:00:16]} 29. Qxa2 {[%clk 0:00:30]}  Rxa2 {[%clk 0:00:15]} 30. Rxa2 {[%clk 0:00:31]}  b5 {[%clk 0:00:15]} 31. c5 {[%clk 0:00:20]}  c6 {[%clk 0:00:14]} 32. h3 {[%clk 0:00:20]}  Qf7 {[%clk 0:00:13]} 33. Ra6 {[%clk 0:00:19]}  Bd1 {[%clk 0:00:10]} 34. Bg2 {[%clk 0:00:19]}  Qc4 {[%clk 0:00:09]} 35. Bf1 {[%clk 0:00:19]}  Qc2 {[%clk 0:00:09]} 36. Ke1 {[%clk 0:00:20]}  Bf6 {[%clk 0:00:06]} 37. Nxf5 {[%clk 0:00:17]}  Bf3 {[%clk 0:00:06]} 38. Ra7+ {[%clk 0:00:16]}  Kg8 {[%clk 0:00:03]} 39. Be2 {[%clk 0:00:17]}  Qb1+ {[%clk 0:00:03]} 40. Kf2 {[%clk 0:00:16]}  Qh1 {[%clk 0:00:04]} 41. Nxh6+ {[%clk 0:00:15]}  Kf8 {[%clk 0:00:03]} 42. Bxf3 {[%clk 0:00:10]}  Qxf3+ {[%clk 0:00:03]} 43. Ke1 {[%clk 0:00:11]}  Qh1+ {[%clk 0:00:03]} 44. Kf2 {[%clk 0:00:11]}  Qf3+ {[%clk 0:00:03]} 45. Kg1 {[%clk 0:00:11]}  Qd1+ {[%clk 0:00:04]} 46. Kh2 {[%clk 0:00:10]}  Qxd2+ {[%clk 0:00:04]} 47. Ng2 {[%clk 0:00:11]}  Bg5 {[%clk 0:00:04]} 48. Nf5 {[%clk 0:00:10]}  Qxb4 {[%clk 0:00:03]} 49. Ra8+ {[%clk 0:00:10]}  Kf7 {[%clk 0:00:03]} 50. Nd6+ {[%clk 0:00:11]}  Ke6 {[%clk 0:00:03]} 51. Nxe4 {[%clk 0:00:11]}  Qc4 {[%clk 0:00:02]} 52. Nxg5+ {[%clk 0:00:12]}  Kf5 {[%clk 0:00:03]} 53. Nf3 {[%clk 0:00:12]}  Ke4 {[%clk 0:00:03]} 54. Ne5 {[%clk 0:00:12]}  Qe2 {[%clk 0:00:03]} 55. Rf8 {[%clk 0:00:12]}  b4 {[%clk 0:00:03]} 56. Rf4+ {[%clk 0:00:12]}  Kd5 {[%clk 0:00:02]} 57. Rf6 {[%clk 0:00:13]}  b3 {[%clk 0:00:01]} 58. Ng6 {[%clk 0:00:13]}  Ke4 {[%clk 0:00:01]} 59. Re6+ {[%clk 0:00:12]}  Kd3 {[%clk 0:00:00]} 60. Nf4+ {[%clk 0:00:13]} 1-0


[Site "https://www.chess.com"]

[Event "Titled Tuesday Blitz May 16 Early 2023"]
[White "Rosenberg, Evan S"]
[Black "RobertDowneyJr0111"]
[WhiteFideId "2019299"]
[WhiteElo "2276"]
[BlackElo "2600"]
[Result "0-1"]
[Round "01"]
[TimeControl "180+2"]
[Date "2023.05.16"]
[WhiteClock "0:00:20"]
[BlackClock "0:00:20"]

1. d4 {[%clk 0:03:00]}  d5 {[%clk 0:02:59]} 2. Nf3 {[%clk 0:02:59]}  Nf6 {[%clk 0:02:59]} 3. c3 {[%clk 0:02:59]}  Bf5 {[%clk 0:02:49]} 4. Qb3 {[%clk 0:02:58]}  Qc8 {[%clk 0:02:46]} 5. c4 {[%clk 0:02:57]}  e6 {[%clk 0:02:45]} 6. cxd5 {[%clk 0:02:57]}  exd5 {[%clk 0:02:45]} 7. Nc3 {[%clk 0:02:58]}  Be7 {[%clk 0:02:44]} 8. Bf4 {[%clk 0:02:58]}  c6 {[%clk 0:02:44]} 9. Rc1 {[%clk 0:02:59]}  O-O {[%clk 0:02:41]} 10. h3 {[%clk 0:02:58]}  Re8 {[%clk 0:02:40]} 11. e3 {[%clk 0:02:55]}  Nbd7 {[%clk 0:02:39]} 12. Be2 {[%clk 0:02:54]}  h6 {[%clk 0:02:33]} 13. O-O {[%clk 0:02:53]}  b6 {[%clk 0:02:32]} 14. Nb5 {[%clk 0:02:51]}  Qb7 {[%clk 0:02:29]} 15. Nc7 {[%clk 0:02:49]}  a5 {[%clk 0:02:21]} 16. Nxa8 {[%clk 0:02:43]}  Rxa8 {[%clk 0:02:20]} 17. a3 {[%clk 0:02:43]}  Ne4 {[%clk 0:02:18]} 18. Rfd1 {[%clk 0:02:35]}  a4 {[%clk 0:02:14]} 19. Qa2 {[%clk 0:02:35]}  g5 {[%clk 0:02:13]} 20. Bh2 {[%clk 0:02:35]}  b5 {[%clk 0:02:09]} 21. Ne5 {[%clk 0:02:34]}  Nxe5 {[%clk 0:02:08]} 22. Bxe5 {[%clk 0:02:34]}  f6 {[%clk 0:02:08]} 23. Bh2 {[%clk 0:02:34]}  Qd7 {[%clk 0:02:04]} 24. g4 {[%clk 0:02:26]}  Bg6 {[%clk 0:02:03]} 25. f3 {[%clk 0:02:21]}  Nd6 {[%clk 0:01:38]} 26. Bd3 {[%clk 0:02:21]}  f5 {[%clk 0:01:35]} 27. Qb1 {[%clk 0:01:51]}  Rf8 {[%clk 0:01:35]} 28. Rd2 {[%clk 0:01:43]}  Nc4 {[%clk 0:01:32]} 29. Bxc4 {[%clk 0:01:39]}  bxc4 {[%clk 0:01:31]} 30. Be5 {[%clk 0:01:40]}  Qe6 {[%clk 0:01:25]} 31. Qc2 {[%clk 0:00:41]}  fxg4 {[%clk 0:01:22]} 32. Qxa4 {[%clk 0:00:41]}  Rxf3 {[%clk 0:01:18]} 33. Rf2 {[%clk 0:00:32]}  Rxf2 {[%clk 0:01:03]} 34. Kxf2 {[%clk 0:00:33]}  gxh3 {[%clk 0:00:59]} 35. Qa8+ {[%clk 0:00:31]}  Bf8 {[%clk 0:01:00]} 36. Rf1 {[%clk 0:00:31]}  Bd3 {[%clk 0:00:59]} 37. Rh1 {[%clk 0:00:25]}  Qg4 {[%clk 0:00:26]} 38. Rg1 {[%clk 0:00:20]}  Qe2+ {[%clk 0:00:22]} 39. Kg3 {[%clk 0:00:21]}  Qxe3+ {[%clk 0:00:22]} 40. Kh2 {[%clk 0:00:21]}  Qf2+ {[%clk 0:00:20]} 41. Kh1 {[%clk 0:00:20]}  Be4+ {[%clk 0:00:20]} 0-1


[Site "https://www.chess.com"]

[Event "Titled Tuesday Blitz May 16 Early 2023"]
[White "Sharapov, Evgeny"]
[Black "Goldin, Roman"]
[WhiteFideId "14103133"]
[BlackFideId "2803860"]
[WhiteElo "2367"]
[BlackElo "2312"]
[Result "0-1"]
[Round "01"]
[TimeControl "180+2"]
[Date "2023.05.16"]
[WhiteClock "0:00:37"]
[BlackClock "0:00:15"]

1. e4 {[%clk 0:02:58]}  e5 {[%clk 0:02:58]} 2. Nf3 {[%clk 0:02:58]}  Nc6 {[%clk 0:02:57]} 3. Bb5 {[%clk 0:02:57]}  a6 {[%clk 0:02:57]} 4. Ba4 {[%clk 0:02:57]}  Nf6 {[%clk 0:02:56]} 5. d3 {[%clk 0:02:57]}  d6 {[%clk 0:02:54]} 6. O-O {[%clk 0:02:57]}  Bg4 {[%clk 0:02:53]} 7. h3 {[%clk 0:02:57]}  Bh5 {[%clk 0:02:43]} 8. c3 {[%clk 0:02:56]}  Be7 {[%clk 0:02:42]} 9. Re1 {[%clk 0:02:56]}  Nd7 {[%clk 0:02:41]} 10. Nbd2 {[%clk 0:02:54]}  Nc5 {[%clk 0:02:41]} 11. Bc2 {[%clk 0:02:54]}  Ne6 {[%clk 0:02:42]} 12. Nf1 {[%clk 0:02:53]}  Bg5 {[%clk 0:02:43]} 13. Ng3 {[%clk 0:02:51]}  Bxf3 {[%clk 0:02:42]} 14. Qxf3 {[%clk 0:02:51]}  Bxc1 {[%clk 0:02:43]} 15. Raxc1 {[%clk 0:02:51]}  O-O {[%clk 0:02:44]} 16. Rcd1 {[%clk 0:02:48]}  Ncd4 {[%clk 0:02:44]} 17. cxd4 {[%clk 0:02:48]}  Nxd4 {[%clk 0:02:44]} 18. Qg4 {[%clk 0:02:37]}  Nxc2 {[%clk 0:02:43]} 19. Rf1 {[%clk 0:02:35]}  Nd4 {[%clk 0:02:42]} 20. f4 {[%clk 0:02:35]}  g6 {[%clk 0:02:27]} 21. fxe5 {[%clk 0:02:30]}  dxe5 {[%clk 0:02:27]} 22. Nh5 {[%clk 0:02:31]}  f6 {[%clk 0:02:05]} 23. Rf2 {[%clk 0:02:22]}  Kh8 {[%clk 0:01:59]} 24. Ng3 {[%clk 0:02:18]}  Qe7 {[%clk 0:01:52]} 25. Rdf1 {[%clk 0:02:17]}  Rad8 {[%clk 0:01:52]} 26. Qh4 {[%clk 0:02:16]}  Rd6 {[%clk 0:01:51]} 27. Qh6 {[%clk 0:02:05]}  Qg7 {[%clk 0:01:49]} 28. Qe3 {[%clk 0:02:03]}  Ne6 {[%clk 0:01:34]} 29. Ne2 {[%clk 0:02:00]}  b6 {[%clk 0:01:29]} 30. h4 {[%clk 0:01:59]}  h5 {[%clk 0:01:24]} 31. g3 {[%clk 0:01:59]}  Kh7 {[%clk 0:01:24]} 32. Nc3 {[%clk 0:01:59]}  Nd4 {[%clk 0:00:57]} 33. Nd5 {[%clk 0:01:54]}  b5 {[%clk 0:00:53]} 34. Kg2 {[%clk 0:01:39]}  c6 {[%clk 0:00:53]} 35. Nc3 {[%clk 0:01:37]}  a5 {[%clk 0:00:50]} 36. Nb1 {[%clk 0:01:31]}  Rfd8 {[%clk 0:00:40]} 37. Nc3 {[%clk 0:01:27]}  Qe7 {[%clk 0:00:28]} 38. a3 {[%clk 0:01:05]}  a4 {[%clk 0:00:26]} 39. Na2 {[%clk 0:01:04]}  Kg7 {[%clk 0:00:25]} 40. Nb4 {[%clk 0:01:03]}  Qd7 {[%clk 0:00:23]} 41. Kh2 {[%clk 0:00:52]}  Qg4 {[%clk 0:00:23]} 42. Kg2 {[%clk 0:00:47]}  Nb3 {[%clk 0:00:19]} 43. Qc5 {[%clk 0:00:37]}  Nxc5 {[%clk 0:00:15]} 0-1


[Site "https://www.chess.com"]